Cogmind - Beta 15 @@@ ROGUE MODE // 2025.06.05 @ 09:05:01 Player: Stick8ug Result: Destroyed by D-53 Grenadier with Mini Grenade Launcher Performance ------------- Evolutions (0) 0 Regions Visited (2) 400 Robots Destroyed (9) 45 Value Destroyed (194) 194 Prototype IDs (0) 0 Alien Tech Used (0) 0 Bonus (0) 0 TOTAL SCORE: 639 Bonus ------- None Cogmind --------- Core Integrity 0/250 Matter 241/300 Energy 160/160 System Corruption 0% Temperature Cool (7) Movement Treading (160) Location -10/Mines Parts ------- > --- POWER (1) -------- Light Nuclear Core > --- PROPULSION (2) --- Light Treads > --- UTILITY (2) ------ Small Storage Unit Seismic Detector > --- WEAPON (2) ------- Autogun Autogun > --- INVENTORY (8) ---- Ion Engine Aluminum Leg Aluminum Leg Aluminum Leg Aluminum Leg Rocket Launcher Rocket Launcher Mining Laser Peak State ------------ > --- POWER ------------ Light Nuclear Core > --- PROPULSION ------- Light Treads Light Treads > --- UTILITY ---------- Small Storage Unit Seismic Detector > --- WEAPON ----------- Autogun Autogun > --- INVENTORY -------- Ion Engine Aluminum Leg Aluminum Leg Aluminum Leg Aluminum Leg Rocket Launcher Rocket Launcher Mining Laser [Rating: 12] Favorites ----------- Power Ion Engine Engine Ion Engine Power Core Light Nuclear Core Propulsion Light Treads Treads Light Treads Utility Small Storage Unit Device Seismic Detector Storage Small Storage Unit Weapon Autogun Energy Gun Medium Laser Ballistic Gun Autogun Build | -11 -10 -10 ------- Run | Yrd Mat Min Slots Evolved . | . . . Power . | . . . Propulsion . | . . . Utility . | . . . Weapon . | . . . Parts Attached 10 | 7 3 . Power 2 | 1 1 . Engine 1 | 1 . . Core 1 | . 1 . Reactor . | . . . Propulsion 2 | 2 . . Treads 2 | 2 . . Leg . | . . . Wheel . | . . . Hover . | . . . Flight . | . . . Utility 2 | 2 . . Device 1 | 1 . . Storage 1 | 1 . . Processor . | . . . Hackware . | . . . Protection . | . . . Artifact . | . . . Weapon 4 | 2 2 . Energy Gun 1 | 1 . . Energy Cannon . | . . . Ballistic Gun 3 | 1 2 . Ballistic Cannon . | . . . Launcher . | . . . Special Weapon . | . . . Impact Weapon . | . . . Slashing Weapon . | . . . Piercing Weapon . | . . . Special Melee Weapon . | . . . Unidentified Prototypes . | . . . Parts Lost 2 | . 1 1 Power 1 | . 1 . Propulsion 1 | . . 1 Utility . | . . . Weapon . | . . . Highest Loss Streak 1 | . 1 1 To Critical Strikes . | . . . Average Backups 6 | 3 7 8 Power . | . 1 1 Propulsion 2 | 1 2 4 Utility . | . . . Weapon 2 | 1 3 3 Tool/Special . | . . . Unused Backups 10 | . 2 8 Power 1 | . . 1 Propulsion 4 | . . 4 Utility 1 | . 1 . Weapon 4 | . 1 3 Tool/Special . | . . . Average Slot Usage (%) 100 | . 100 100 Engine 9 | . 9 . Core 4 | . 4 14 Treads 28 | . 28 28 Device 14 | . 14 14 Storage 14 | . 14 14 Energy Gun 1 | . 1 . Ballistic Gun 26 | . 26 28 Peak Build Rating 12 | 7 12 12 Average Rating 9 | 5 10 11 On Entrance 6 | . 7 12 Naked Turns . | . . . Heaviest Build 17 | 15 17 17 Greatest Support 40 | 40 40 40 Greatest Overweight (x) . | . . . Average Overweight (x) . | . . . Largest Inventory Capacity 8 | 8 8 8 Average Capacity 7 | 7 8 8 Most Carried 8 | 5 8 8 Average Carried 6 | 3 7 8 Final Capacity 8 | 8 8 8 Final Carried 8 | 5 8 8 Class Distribution -------------------- 100% | Mutant Dominant Class ---------------- Mutant | -10/Materials Mutant | -10/Mines Resources | -11 -10 -10 ----------- Run | Yrd Mat Min Matter Collected 468 | 291 177 . Remotely . | . . . Salvage Created 330 | 153 177 . Parts 24 | 13 11 . Haulers Intercepted . | . . . Recyclers Shooed . | . . . Parts Field Recycled . | . . . Retrieved Matter . | . . . Parts Self-Destructed . | . . . Prevented . | . . . Kills | -11 -10 -10 ------- Run | Yrd Mat Min Combat Hostiles Destroyed 4 | . 4 . Guns 4 | . 4 . Classes Destroyed 4 | 2 2 . Builder 1 | . 1 . Tunneler 3 | 3 . . Recycler 1 | 1 . . Grunt 4 | . 4 . Best Kill Streak 3 | 2 3 . Combat Bots Only 2 | . 2 . Max Kills in Single Turn 1 | 1 1 . Gunslinging . | . . . Exploded . | . . . Melee . | . . . Uniques/NPCs Destroyed . | . . . Combat | -11 -10 -10 -------- Run | Yrd Mat Min Hostile Shots Fired 49 | . 40 9 Missed 11 | . 9 2 Hits 38 | . 31 7 Projectile 38 | . 31 7 AOE 11 | . . 11 Critical Strikes 1 | . 1 . Damage Taken 782 | . 414 368 Core 250 | . 69 181 Absorbed by Shields . | . . . Core Remaining (%) 100 | 100 . . Volleys Fired 34 | 7 23 4 Largest 2 | 2 2 2 Hottest 70 | 70 46 46 Shots Fired 68 | 14 46 8 Gun 68 | 14 46 8 Cannon . | . . . Launcher . | . . . Special . | . . . Kinetic 61 | 7 46 8 Thermal 7 | 7 . . Explosive . | . . . Electromagnetic . | . . . Robot Hit Streak 9 | 5 9 3 Robot Miss Streak 3 | 1 3 2 Penetration Max . | . . . Secondary Targets . | . . . Shots Hit Robots 42 | 11 27 4 Core Hits 15 | 5 9 1 Critical Kills . | . . . Critical Parts Destroyed . | . . . Critical Strikes . | . . . Melee Attacks . | . . . Impact . | . . . Slashing . | . . . Piercing . | . . . Sneak Attacks . | . . . Combat Hostiles . | . . . Follow-up Attacks . | . . . Damage Inflicted 621 | 145 419 57 Guns 621 | 145 419 57 Cannons . | . . . Explosions . | . . . Melee . | . . . Ramming . | . . . Kinetic 531 | 55 419 57 Thermal 90 | 90 . . Explosive . | . . . Electromagnetic . | . . . Impact . | . . . Slashing . | . . . Piercing . | . . . Highest Corruption . | . . . Average Corruption . | . . . Corruption Purged . | . . . Corruption Blocked . | . . . Overload Shots . | . . . Overflow Damage . | . . . Projectiles . | . . . Explosions . | . . . Melee . | . . . Knockbacks . | . . . Impact . | . . . Kinetic . | . . . Secondary . | . . . Self-Inflicted Damage . | . . . Shots . | . . . Rammed . | . . . Targets Rammed . | . . . Kicked . | . . . Crushed . | . . . Highest Temperature 104 | 45 104 20 Average Temperature 32 | 18 41 9 Received Heat Transfer 255 | . 255 . Siege Activations . | . . . Martial Activations . | . . . Shielding Activations . | . . . Robots Disrupted . | . . . Combat Hostiles . | . . . Robots Corrupted . | . . . Combat Hostiles . | . . . Parts Fried . | . . . Impact Corruptions . | . . . Robots Melted . | . . . Combat Hostiles . | . . . Parts Melted 1 | 1 . . Heat Transferred 259 | 259 . . Parts Sabotaged . | . . . Parts Stolen . | . . . Parts Stripped . | . . . Power Chain Reactions . | . . . Alert | -11 -10 -10 ------- Run | Yrd Mat Min Maximum Alert Level . | . . . Low Security (%) 100 | 100 100 100 Level 1 . | . . . Level 2 . | . . . Level 3 . | . . . Level 4 . | . . . Level 5 . | . . . High Security . | . . . Max Security . | . . . Peak Influence 77 | 10 77 10 Initial 10 | . . 10 Average 19 | 1 27 6 Influence Increases 159 | 20 139 . Destroy 0b10 Robot/C 80 | . 80 . Destroy 0b10 Robot/NC 25 | 20 5 . Destroy Leader 20 | . 20 . Successful Hack 2 | . 2 . Destroy Structure 2 | . 2 . Partial Spotted 15 | . 15 . Lose Combat Pursuer 15 | . 15 . Influence Decreases 159 | 20 110 29 Entered New Map 19 | . . 19 Time Decay 130 | 20 100 10 Lost Part 10 | . 10 . Squads Dispatched 1 | . 1 . Investigation 1 | . 1 . Extermination . | . . . Reinforcement . | . . . Assault . | . . . Garrison . | . . . Intercept . | . . . Searches Triggered . | . . . Construction Impeded . | . . . Haulers Reinforced . | . . . Active Scanning Responses . | . . . Cargo Convoy Interrupts . | . . . Stealth | -11 -10 -10 --------- Run | Yrd Mat Min Distress Signals 2 | . 2 . Communications Jammed . | . . . Distress Signals . | . . . Times Spotted 10 | . 8 2 Peak Tracking Total 4 | . 4 2 Tactical Retreats 1 | . 1 . Traps | -11 -10 -10 ------- Run | Yrd Mat Min Traps Triggered 1 | . 1 . Indirectly . | . . . Trap Hack Attempts . | . . . Triggered . | . . . Disarmed . | . . . Reprogrammed . | . . . Reused . | . . . Traps Extracted . | . . . Installed . | . . . Triggered . | . . . Machines | -11 -10 -10 ---------- Run | Yrd Mat Min Machines Disabled . | . . . Max in Single Turn . | . . . Machines Repaired . | . . . Machines Dismantled . | . . . Machines Sabotaged . | . . . Overloaded Fab Kills . | . . . Hacking | -11 -10 -10 --------- Run | Yrd Mat Min Machines Accessed 2 | . 2 . Terminals 2 | . 2 . Fabricators . | . . . Repair Stations . | . . . Recycling Units . | . . . Scanalyzers . | . . . Garrison Access . | . . . Total Hacks 5 | . 5 . Successful 2 | . 2 . Failed 3 | . 3 . Catastrophic . | . . . Database Lockouts . | . . . Manual . | . . . Terminals 5 | . 5 . Fabricators . | . . . Repair Stations . | . . . Recycling Units . | . . . Scanalyzers . | . . . Garrison Access . | . . . Terminal Hacks 2 | . 2 . Record 2 | . 2 . Fabricator Hacks . | . . . Repair Station Hacks . | . . . Recycling Unit Hacks . | . . . Scanalyzer . | . . . Garrison Access Hacks . | . . . Unauthorized Hacks . | . . . Terminals . | . . . Fabricators . | . . . Repair Stations . | . . . Recycling Units . | . . . Scanalyzers . | . . . Garrison Access . | . . . Data Cores Recovered . | . . . Used . | . . . Hacking Detections 1 | . 1 . Full Trace Events . | . . . Feedback Events . | . . . Feedback Blocked . | . . . Robot Schematics Acquired . | . . . Robots Built . | . . . Authchips . | . . . Time . | . . . Total Robot Build Rating . | . . . Part Schematics Acquired . | . . . Parts Built . | . . . Authchips . | . . . Time . | . . . Total Part Build Rating . | . . . Parts Repaired . | . . . Time . | . . . Parts Recycled . | . . . Recycled Matter . | . . . Retrieved Matter . | . . . Retrieved Components . | . . . Parts Scanalyzed . | . . . Part Schematics Acquired . | . . . Parts Damaged . | . . . Bothacking | -11 -10 -10 ------------ Run | Yrd Mat Min Used RIF Installer . | . . . Robots Hacked . | . . . Non-combat . | . . . Combat . | . . . Robot Hacks Applied . | . . . Relay Couplers Released . | . . . Fabnet Peak Effective % . | . . . Robots Rewired . | . . . Allies Hacked . | . . . Hacks Repelled . | . . . Allies | -11 -10 -10 -------- Run | Yrd Mat Min Total Allies . | . . . Largest Group . | . . . Highest-Rated Group . | . . . Highest-Rated Ally . | . . . Total Orders . | . . . Ally Attacks . | . . . Total Damage . | . . . Kills . | . . . Allies Corrupted . | . . . Allies Melted . | . . . Intel | -11 -10 -10 ------- Run | Yrd Mat Min Active Infowar (turns) 393 | 26 337 30 Seismic 393 | 26 337 30 Robot Analysis Total . | . . . Derelict Logs Recovered . | . . . Drone Launches . | . . . Drone Recoveries . | . . . Exploration | -11 -10 -10 ------------- Run | Yrd Mat Min Turns Passed 488 | 121 337 30 Spaces Moved 232 | 55 164 13 Core 3 | 3 . . Treads 229 | 52 164 13 Legs . | . . . Wheels . | . . . Hover . | . . . Flight . | . . . Fastest Speed 50 | 50 160 160 Average Speed 158 | 154 160 160 Slowest Speed 160 | 160 160 160 Overloaded Moves . | . . . Propulsion Burnouts . | . . . Robots Hopped . | . . . Potential Cave-ins . | . . . Cave-ins Triggered . | . . . Exploration Rate (%) 17 | 5 37 9 Regions Visited 2 Branch Regions 1 Pre-discovered Areas . | . . . Known Exits Taken . | . . . Unknown Exits Taken 2 | 1 1 . Scrap Searched . | . . . Spaces Dug . | . . . Terrain Destroyed . | . . . Melee . | . . . Projectile . | . . . AOE . | . . . Terrain Rammed . | . . . Walls Destroyed . | . . . Machines Disabled . | . . . Actions | -11 -10 -10 --------- Run | Yrd Mat Min Total 293 | 74 202 17 Wait 4 | . 4 . Move 230 | 54 163 13 Hop . | . . . Pick Up 11 | 6 5 . Fast Attach 9 | 6 3 . Attach 1 | 1 . . Detach . | . . . Swap . | . . . Drop 4 | . 4 . Fire 34 | 7 23 4 Melee . | . . . Ram . | . . . Kick . | . . . Crush . | . . . Escape Stasis . | . . . Rewire . | . . . Trap . | . . . Miscellaneous . | . . . Route ------- -11/Scrapyard -10/Materials -10/Mines History --------- Turn | Location | Event 17 | -11/Scrapyard | Discovered new exit (range 14) 122 | -11/Scrapyard | Entered Materials 313 | -10/Materials | Build established: Mutant 436 | -10/Materials | Discovered new exit (range 14) 459 | -10/Materials | Entered Mines 464 | -10/Mines | Assembled infested the area 468 | -10/Mines | Met a Derelict bent on vengeance 482 | -10/Mines | Core integrity fell below 50% 486 | -10/Mines | Core integrity fell below 20% 489 | -10/Mines | Destroyed by D-53 Grenadier with Mini Grenade Launcher Last Messages --------------- U-05 Engineer lays Concrete. K-01 Serf collects debris. U-05 Engineer works on Material Compactor. K-01 Serf collects debris. U-05 Engineer works on Material Compactor. EXIT=FOUND U-05 Engineer works on Material Compactor. K-01 Serf collects debris. U-05 Engineer works on Material Compactor. U-05 Engineer completes Material Compactor. LOCATION=UNKNOWN GOAL=ESCAPE ALERT: Infestation in the mines, dispatching Demolisher response squad. C-30 ARC bursts open, deploying its payload. D-53 Grenadier unfolds itself. Y7-3XX(g) destroyed. Lgt. Treads destroyed. The unstable cave ceiling collapses. Destroyed Shock Absorption System. Map ----- +----------------------------------------------------+ | ?????????????????????????????????????????????????? | | ?????????????????????????????????????????????????? | | ?????????????????????????????????????????????????? | | ?????????????????????????????????????????????????? | | ?????????????????????????????????????????????????? | | ?????????????????????????????????????????????????? | | ?????????????????????????????????????????????????? | | ?????????????????????????????????????????????????? | | ?????????????????????????????????????????????????? | | ?????????????????????????????????????????????????? | | ?????????????????????????????????????????????????? | | ?????????????????????????????????????????????????? | | ?????????????????????????????????????????????????? | | ??????????????????????????####???????????????????? | | ?????????????????????????## ##??????????????????? | | ?????????????????????????# #??????????????????? | | ?????????????????????????# #??????????????????? | | ????????????????????????## #??????????????????? | | ??????????????????????### #??????????????????? | | ????????????????????### ##??????????????????? | | ????????????????????# #???????????????????? | | ??????????????????### ##??????????????????? | | ?????????????????## #??????????????????? | | ?????????????????# #??????????????????? | | ????????????????## #??????????????????? | | ?????????????# @ #???????????????????? | | ?????????????#### #??????????????????? | | ????????????????# #??????????????????? | | ????????????????## # ##??????????????????? | | ?????????????????#### # ##???????????????????? | | ????????????????????# #????????????????????? | | ????????????????????## d #????????????????????? | | ????????????????????? d ##????????????????????? | | ????????????????????? %?????????????????????? | | ???????????????????? ###?????????????????????? | | ???????????????????? #????????????????????????? | | ???????????????????#####?????????????????????????? | | ?????????????????????????????????????????????????? | | ?????????????????????????????????????????????????? | | | | | | | | | | | | | | | | | | | | | | | +----------------------------------------------------+ Best States ------------- Heat Dissipation 25 Energy Generation 14 Energy Capacity 250 Matter Stores 300 Matter Capacity 300 Sight Range 16 Terrain Scan Density 10 Evasion (%) 40 Recoil Reduction 2 Item Schematics ----------------- None Robot Schematics ------------------ None Fabricated ------------ Nothing Repaired ---------- Nothing Alien Tech Used ----------------- None Achievements -------------- None Challenges ------------ None Game ------ Seed LongswordGodRecalibrator Manual? 0 Play Time 00:08:13 Cumulative 7.0 hours Start 2025.06.05 @ 08:56:57 End 2025.06.05 @ 09:05:01 Sessions 1 Manual Loads 0 Difficulty Rogue Special Mode None Game No. 17 Rogue 17 Adventurer 0 Explorer 0 Win Type - Total 0 Types 0/0/0/0/0/0/0/0/0/0 Lore% 2 Gallery% 11 Achievement% 10 Wizard Run 0 Options --------- Layout 1 ASCII 0 Keyboard 0 Movement Arrows Keybinds 0 Fullscreen 1 Font 24/Smallcaps Map View 50x35 Zoom Use 0% Tactical HUD 0 Map Filters NONE Filters NONE Steam 1 RUN: 709ccb5a-2c32-4686-8c67-862be852aa24